[Event "Titled Tuesday Blitz July 11 Late 2023"]
[White "Trifan, Andrei Ioan"]
[Black "Goryachkina, Aleksandra"]
[WhiteFideId "12967068"]
[BlackFideId "4147103"]
[WhiteElo "2511"]
[BlackElo "2681"]
[Result "0-1"]
[Round "4"]
[TimeControl "180+2"]
[Date "2023.07.11"]
[WhiteClock "0:00:00"]
[BlackClock "0:00:20"]
[Board "58"]

1. Nf3 {[%clk 0:03:00]}  d5 {[%clk 0:02:56]} 2. e3 {[%clk 0:02:58]}  c5 {[%clk 0:02:53]} 3. b3 {[%clk 0:02:56]}  a6 {[%clk 0:02:53]} 4. Bb2 {[%clk 0:02:56]}  Nc6 {[%clk 0:02:53]} 5. d4 {[%clk 0:02:54]}  Nf6 {[%clk 0:02:53]} 6. Be2 {[%clk 0:02:53]}  Bg4 {[%clk 0:02:51]} 7. O-O {[%clk 0:02:53]}  e6 {[%clk 0:02:51]} 8. c4 {[%clk 0:02:52]}  cxd4 {[%clk 0:02:45]} 9. Nxd4 {[%clk 0:02:52]}  Bxe2 {[%clk 0:02:44]} 10. Qxe2 {[%clk 0:02:53]}  Nxd4 {[%clk 0:02:44]} 11. Bxd4 {[%clk 0:02:51]}  dxc4 {[%clk 0:02:43]} 12. Qxc4 {[%clk 0:02:49]}  Rc8 {[%clk 0:02:42]} 13. Qa4+ {[%clk 0:02:44]}  Qd7 {[%clk 0:02:40]} 14. Nc3 {[%clk 0:02:40]}  Be7 {[%clk 0:02:14]} 15. Rfd1 {[%clk 0:02:17]}  Qxa4 {[%clk 0:02:11]} 16. Nxa4 {[%clk 0:02:17]}  O-O {[%clk 0:02:09]} 17. Rac1 {[%clk 0:02:11]}  Nd5 {[%clk 0:01:58]} 18. Nc5 {[%clk 0:01:42]}  Rc7 {[%clk 0:01:43]} 19. Nd3 {[%clk 0:01:21]}  Rfc8 {[%clk 0:01:30]} 20. e4 {[%clk 0:01:15]}  Rxc1 {[%clk 0:01:26]} 21. Rxc1 {[%clk 0:01:14]}  Rxc1+ {[%clk 0:01:24]} 22. Nxc1 {[%clk 0:01:15]}  Nb4 {[%clk 0:01:24]} 23. Bc3 {[%clk 0:01:00]}  Nc6 {[%clk 0:01:24]} 24. f3 {[%clk 0:00:56]}  g6 {[%clk 0:01:15]} 25. Kf2 {[%clk 0:00:54]}  Kf8 {[%clk 0:01:15]} 26. Nd3 {[%clk 0:00:51]}  Ke8 {[%clk 0:01:15]} 27. Ke3 {[%clk 0:00:50]}  Kd7 {[%clk 0:01:14]} 28. Ne5+ {[%clk 0:00:47]}  Nxe5 {[%clk 0:01:14]} 29. Bxe5 {[%clk 0:00:47]}  Kc6 {[%clk 0:01:09]} 30. Kd3 {[%clk 0:00:44]}  Kb5 {[%clk 0:01:09]} 31. Bc3 {[%clk 0:00:42]}  h5 {[%clk 0:00:52]} 32. a4+ {[%clk 0:00:39]}  Kc6 {[%clk 0:00:52]} 33. Kc4 {[%clk 0:00:29]}  f5 {[%clk 0:00:47]} 34. g3 {[%clk 0:00:20]}  Bd6 {[%clk 0:00:38]} 35. Bd2 {[%clk 0:00:16]}  h4 {[%clk 0:00:33]} 36. Be1 {[%clk 0:00:15]}  h3 {[%clk 0:00:30]} 37. Bf2 {[%clk 0:00:15]}  Bc7 {[%clk 0:00:24]} 38. b4 {[%clk 0:00:14]}  b5+ {[%clk 0:00:24]} 39. axb5+ {[%clk 0:00:14]}  axb5+ {[%clk 0:00:25]} 40. Kd3 {[%clk 0:00:15]}  Bd6 {[%clk 0:00:22]} 41. Kc3 {[%clk 0:00:15]}  g5 {[%clk 0:00:19]} 42. exf5 {[%clk 0:00:14]}  exf5 {[%clk 0:00:20]} 43. Be1 {[%clk 0:00:13]}  Kd5 {[%clk 0:00:19]} 44. Bf2 {[%clk 0:00:12]}  g4 {[%clk 0:00:19]} 45. fxg4 {[%clk 0:00:00]}  fxg4 {[%clk 0:00:20]} 0-1


[Site "https://www.chess.com"]

[Event "Titled Tuesday Blitz July 11 Late 2023"]
[White "Yurasova, Daria"]
[Black "benny_aizenberg"]
[WhiteFideId "34146919"]
[WhiteElo "2484"]
[BlackElo "2640"]
[Result "0-1"]
[Round "4"]
[TimeControl "180+2"]
[Date "2023.07.11"]
[WhiteClock "0:00:21"]
[BlackClock "0:00:47"]
[Board "63"]

1. d4 {[%clk 0:02:56]}  f5 {[%clk 0:02:59]} 2. Bg5 {[%clk 0:02:55]}  g6 {[%clk 0:02:57]} 3. Nd2 {[%clk 0:02:53]}  Bg7 {[%clk 0:02:57]} 4. e3 {[%clk 0:02:51]}  d6 {[%clk 0:02:55]} 5. h4 {[%clk 0:02:52]}  h6 {[%clk 0:02:53]} 6. Bf4 {[%clk 0:02:51]}  Nf6 {[%clk 0:02:53]} 7. Ngf3 {[%clk 0:02:51]}  e6 {[%clk 0:02:40]} 8. Bd3 {[%clk 0:02:50]}  Qe7 {[%clk 0:02:41]} 9. c4 {[%clk 0:02:49]}  Nbd7 {[%clk 0:02:41]} 10. Qc2 {[%clk 0:02:45]}  b6 {[%clk 0:02:40]} 11. a4 {[%clk 0:02:39]}  e5 {[%clk 0:02:31]} 12. Bg3 {[%clk 0:02:12]}  e4 {[%clk 0:02:29]} 13. Be2 {[%clk 0:02:11]}  exf3 {[%clk 0:02:26]} 14. Bxf3 {[%clk 0:02:12]}  Rb8 {[%clk 0:02:27]} 15. h5 {[%clk 0:02:09]}  Nxh5 {[%clk 0:02:11]} 16. Bxh5 {[%clk 0:02:07]}  gxh5 {[%clk 0:02:11]} 17. Qxf5 {[%clk 0:02:07]}  Nf6 {[%clk 0:02:11]} 18. Qd3 {[%clk 0:02:05]}  O-O {[%clk 0:02:08]} 19. O-O-O {[%clk 0:02:02]}  Qf7 {[%clk 0:02:07]} 20. e4 {[%clk 0:01:54]}  c5 {[%clk 0:02:02]} 21. e5 {[%clk 0:01:51]}  dxe5 {[%clk 0:01:55]} 22. dxe5 {[%clk 0:01:51]}  Ng4 {[%clk 0:01:51]} 23. e6 {[%clk 0:01:31]}  Bxe6 {[%clk 0:01:51]} 24. Bxb8 {[%clk 0:01:32]}  Rxb8 {[%clk 0:01:38]} 25. Rde1 {[%clk 0:01:06]}  Bf5 {[%clk 0:01:25]} 26. Qd6 {[%clk 0:01:04]}  Rf8 {[%clk 0:01:17]} 27. f3 {[%clk 0:01:02]}  Nf2 {[%clk 0:01:16]} 28. Re7 {[%clk 0:00:57]}  Qf6 {[%clk 0:01:15]} 29. Qd5+ {[%clk 0:00:43]}  Kh8 {[%clk 0:01:15]} 30. Rxg7 {[%clk 0:00:37]}  Qxg7 {[%clk 0:01:12]} 31. Rxh5 {[%clk 0:00:37]}  Bg6 {[%clk 0:01:09]} 32. Rh2 {[%clk 0:00:27]}  Nd3+ {[%clk 0:01:08]} 33. Kd1 {[%clk 0:00:27]}  Re8 {[%clk 0:01:04]} 34. Ne4 {[%clk 0:00:25]}  Bxe4 {[%clk 0:01:03]} 35. fxe4 {[%clk 0:00:26]}  Nf2+ {[%clk 0:01:03]} 36. Kc2 {[%clk 0:00:26]}  Nxe4 {[%clk 0:01:02]} 37. Qh5 {[%clk 0:00:20]}  Re6 {[%clk 0:01:00]} 38. g4 {[%clk 0:00:20]}  Ng5 {[%clk 0:00:56]} 39. Rd2 {[%clk 0:00:17]}  Qg6+ {[%clk 0:00:55]} 40. Qxg6 {[%clk 0:00:18]}  Rxg6 {[%clk 0:00:55]} 41. Rd7 {[%clk 0:00:19]}  Rg7 {[%clk 0:00:55]} 42. Rd6 {[%clk 0:00:19]}  Kh7 {[%clk 0:00:54]} 43. a5 {[%clk 0:00:20]}  bxa5 {[%clk 0:00:53]} 44. Rc6 {[%clk 0:00:20]}  Ne4 {[%clk 0:00:52]} 45. Re6 {[%clk 0:00:21]}  Rxg4 {[%clk 0:00:52]} 46. Re7+ {[%clk 0:00:21]}  Kg6 {[%clk 0:00:52]} 47. Rxa7 {[%clk 0:00:22]}  h5 {[%clk 0:00:52]} 48. Rxa5 {[%clk 0:00:23]}  h4 {[%clk 0:00:52]} 49. Ra8 {[%clk 0:00:23]}  h3 {[%clk 0:00:50]} 50. Rg8+ {[%clk 0:00:24]}  Kf5 {[%clk 0:00:49]} 51. Rh8 {[%clk 0:00:24]}  Ng5 {[%clk 0:00:49]} 52. Kc3 {[%clk 0:00:23]}  Rg3+ {[%clk 0:00:48]} 53. Kc2 {[%clk 0:00:23]}  Kg4 {[%clk 0:00:48]} 54. b4 {[%clk 0:00:24]}  cxb4 {[%clk 0:00:47]} 55. Kb2 {[%clk 0:00:21]}  Rc3 {[%clk 0:00:47]} 0-1


[Site "https://www.chess.com"]

[Event "Titled Tuesday Blitz July 11 Late 2023"]
[White "Romero Ruscalleda, Josep"]
[Black "Grebeniuk, Semen"]
[WhiteFideId "2231859"]
[BlackFideId "14117509"]
[WhiteElo "2449"]
[BlackElo "2629"]
[Result "1-0"]
[Round "4"]
[TimeControl "180+2"]
[Date "2023.07.11"]
[WhiteClock "0:01:07"]
[BlackClock "0:00:00"]
[Board "67"]

1. e4 {[%clk 0:03:00]}  c5 {[%clk 0:02:59]} 2. c3 {[%clk 0:03:00]}  Nf6 {[%clk 0:02:59]} 3. e5 {[%clk 0:03:01]}  Nd5 {[%clk 0:03:00]} 4. Nf3 {[%clk 0:03:01]}  g6 {[%clk 0:02:59]} 5. Bc4 {[%clk 0:03:00]}  Nb6 {[%clk 0:02:58]} 6. Bb3 {[%clk 0:03:01]}  c4 {[%clk 0:02:58]} 7. Bc2 {[%clk 0:03:00]}  Bg7 {[%clk 0:02:59]} 8. O-O {[%clk 0:03:00]}  Nc6 {[%clk 0:02:58]} 9. Re1 {[%clk 0:03:00]}  O-O {[%clk 0:02:58]} 10. Qe2 {[%clk 0:02:59]}  d5 {[%clk 0:02:57]} 11. exd6 {[%clk 0:02:57]}  Qxd6 {[%clk 0:02:53]} 12. h3 {[%clk 0:02:55]}  Bf5 {[%clk 0:02:47]} 13. Bxf5 {[%clk 0:02:51]}  gxf5 {[%clk 0:02:48]} 14. Na3 {[%clk 0:02:50]}  Qc5 {[%clk 0:02:32]} 15. b4 {[%clk 0:02:43]}  cxb3 {[%clk 0:02:10]} 16. axb3 {[%clk 0:02:42]}  e6 {[%clk 0:02:09]} 17. Bb2 {[%clk 0:02:34]}  Rfd8 {[%clk 0:02:06]} 18. d4 {[%clk 0:02:33]}  Qe7 {[%clk 0:02:01]} 19. Nc4 {[%clk 0:02:28]}  Nxc4 {[%clk 0:01:56]} 20. bxc4 {[%clk 0:02:28]}  Qc7 {[%clk 0:01:49]} 21. c5 {[%clk 0:02:13]}  b6 {[%clk 0:01:40]} 22. Ba3 {[%clk 0:02:07]}  Rac8 {[%clk 0:01:02]} 23. Rab1 {[%clk 0:01:59]}  Ne7 {[%clk 0:00:53]} 24. Rec1 {[%clk 0:01:50]}  Nd5 {[%clk 0:00:52]} 25. Qa6 {[%clk 0:01:36]}  Rb8 {[%clk 0:00:39]} 26. Nd2 {[%clk 0:01:26]}  bxc5 {[%clk 0:00:27]} 27. Rxb8 {[%clk 0:01:25]}  Rxb8 {[%clk 0:00:25]} 28. Bxc5 {[%clk 0:01:25]}  Rb2 {[%clk 0:00:23]} 29. Nc4 {[%clk 0:01:17]}  Re2 {[%clk 0:00:16]} 30. Ne5 {[%clk 0:01:11]}  Rxe5 {[%clk 0:00:00]} 31. Bd6 {[%clk 0:01:07]} 1-0


[Site "https://www.chess.com"]

[Event "Titled Tuesday Blitz July 11 Late 2023"]
[White "Rios Escobar, Adan"]
[Black "Rostomyan, Mikayel"]
[WhiteFideId "3403645"]
[BlackFideId "13313754"]
[WhiteElo "2447"]
[BlackElo "2626"]
[Result "0-1"]
[Round "4"]
[TimeControl "180+2"]
[Date "2023.07.11"]
[WhiteClock "0:00:00"]
[BlackClock "0:01:20"]
[Board "68"]

1. d4 {[%clk 0:02:57]}  Nf6 {[%clk 0:02:59]} 2. g3 {[%clk 0:02:53]}  e6 {[%clk 0:02:54]} 3. c4 {[%clk 0:02:52]}  d5 {[%clk 0:02:54]} 4. Bg2 {[%clk 0:02:51]}  Be7 {[%clk 0:02:53]} 5. Nf3 {[%clk 0:02:51]}  O-O {[%clk 0:02:51]} 6. O-O {[%clk 0:02:51]}  c6 {[%clk 0:02:42]} 7. Qc2 {[%clk 0:02:47]}  Nbd7 {[%clk 0:02:41]} 8. Nbd2 {[%clk 0:02:47]}  b6 {[%clk 0:02:39]} 9. e4 {[%clk 0:02:44]}  dxe4 {[%clk 0:02:36]} 10. Nxe4 {[%clk 0:02:45]}  Bb7 {[%clk 0:02:36]} 11. Nxf6+ {[%clk 0:02:44]}  Bxf6 {[%clk 0:02:34]} 12. Rd1 {[%clk 0:02:39]}  Qe7 {[%clk 0:02:34]} 13. Bf4 {[%clk 0:02:32]}  Rfd8 {[%clk 0:02:32]} 14. Rac1 {[%clk 0:02:26]}  c5 {[%clk 0:02:30]} 15. d5 {[%clk 0:02:16]}  exd5 {[%clk 0:02:24]} 16. cxd5 {[%clk 0:02:17]}  Nf8 {[%clk 0:02:20]} 17. d6 {[%clk 0:01:58]}  Qd7 {[%clk 0:02:18]} 18. Rd2 {[%clk 0:01:38]}  Ne6 {[%clk 0:02:13]} 19. Be3 {[%clk 0:01:39]}  Rac8 {[%clk 0:02:03]} 20. Rcd1 {[%clk 0:01:37]}  Nd4 {[%clk 0:01:58]} 21. Bxd4 {[%clk 0:01:24]}  cxd4 {[%clk 0:01:58]} 22. Qd3 {[%clk 0:00:56]}  Qxd6 {[%clk 0:01:58]} 23. Ng5 {[%clk 0:00:51]}  Bxg5 {[%clk 0:01:49]} 24. Bxb7 {[%clk 0:00:50]}  Rc7 {[%clk 0:01:41]} 25. f4 {[%clk 0:00:41]}  Bxf4 {[%clk 0:01:37]} 26. gxf4 {[%clk 0:00:38]}  Rxb7 {[%clk 0:01:36]} 27. Qxd4 {[%clk 0:00:39]}  Qg6+ {[%clk 0:01:34]} 28. Kf2 {[%clk 0:00:23]}  Rxd4 {[%clk 0:01:31]} 29. Rxd4 {[%clk 0:00:24]}  h6 {[%clk 0:01:30]} 30. Rd8+ {[%clk 0:00:16]}  Kh7 {[%clk 0:01:30]} 31. Rc8 {[%clk 0:00:17]}  Qg4 {[%clk 0:01:26]} 32. Rdd8 {[%clk 0:00:17]}  Qxf4+ {[%clk 0:01:26]} 33. Kg2 {[%clk 0:00:17]}  Rc7 {[%clk 0:01:26]} 34. Rh8+ {[%clk 0:00:15]}  Kg6 {[%clk 0:01:26]} 35. Rxc7 {[%clk 0:00:16]}  Qxc7 {[%clk 0:01:26]} 36. h4 {[%clk 0:00:17]}  Qc2+ {[%clk 0:01:25]} 37. Kg3 {[%clk 0:00:17]}  Qxb2 {[%clk 0:01:26]} 38. Kg4 {[%clk 0:00:14]}  h5+ {[%clk 0:01:26]} 39. Kf4 {[%clk 0:00:14]}  Qd4+ {[%clk 0:01:25]} 40. Kf3 {[%clk 0:00:14]}  Qg4+ {[%clk 0:01:25]} 41. Ke3 {[%clk 0:00:14]}  Qxh4 {[%clk 0:01:25]} 42. a4 {[%clk 0:00:14]}  Qg3+ {[%clk 0:01:24]} 43. Ke4 {[%clk 0:00:14]}  h4 {[%clk 0:01:24]} 44. a5 {[%clk 0:00:14]}  bxa5 {[%clk 0:01:23]} 45. Kd5 {[%clk 0:00:14]}  h3 {[%clk 0:01:23]} 46. Kc4 {[%clk 0:00:15]}  h2 {[%clk 0:01:23]} 47. Kb5 {[%clk 0:00:15]}  Qg5+ {[%clk 0:01:23]} 48. Ka6 {[%clk 0:00:15]}  Qh5 {[%clk 0:01:22]} 49. Rd8 {[%clk 0:00:08]}  h1=Q {[%clk 0:01:21]} 50. Rd6+ {[%clk 0:00:00]}  Kh7 {[%clk 0:01:20]} 0-1


[Site "https://www.chess.com"]

[Event "Titled Tuesday Blitz July 11 Late 2023"]
[White "Fiorito, Joaquin"]
[Black "Kaplan, Avi Harrison"]
[WhiteFideId "180173"]
[BlackFideId "30934559"]
[WhiteElo "2623"]
[BlackElo "2442"]
[Result "1-0"]
[Round "4"]
[TimeControl "180+2"]
[Date "2023.07.11"]
[WhiteClock "0:00:44"]
[BlackClock "0:00:02"]
[Board "69"]

1. d4 {[%clk 0:03:00]}  Nf6 {[%clk 0:02:52]} 2. Nc3 {[%clk 0:03:00]}  c5 {[%clk 0:02:50]} 3. d5 {[%clk 0:03:00]}  d6 {[%clk 0:02:49]} 4. e4 {[%clk 0:03:00]}  g6 {[%clk 0:02:50]} 5. Nf3 {[%clk 0:03:01]}  Bg7 {[%clk 0:02:51]} 6. Bc4 {[%clk 0:03:01]}  O-O {[%clk 0:02:51]} 7. O-O {[%clk 0:03:02]}  Bg4 {[%clk 0:02:49]} 8. h3 {[%clk 0:03:02]}  Bxf3 {[%clk 0:02:49]} 9. Qxf3 {[%clk 0:03:03]}  Nbd7 {[%clk 0:02:50]} 10. Be2 {[%clk 0:03:03]}  e6 {[%clk 0:02:40]} 11. Bg5 {[%clk 0:02:59]}  h6 {[%clk 0:02:36]} 12. Bh4 {[%clk 0:02:54]}  exd5 {[%clk 0:02:26]} 13. Nxd5 {[%clk 0:02:44]}  g5 {[%clk 0:02:26]} 14. Bg3 {[%clk 0:02:44]}  Nxd5 {[%clk 0:02:25]} 15. exd5 {[%clk 0:02:45]}  Ne5 {[%clk 0:02:12]} 16. Qb3 {[%clk 0:02:20]}  f5 {[%clk 0:02:03]} 17. f4 {[%clk 0:02:12]}  gxf4 {[%clk 0:01:57]} 18. Bxf4 {[%clk 0:02:12]}  Ng6 {[%clk 0:01:56]} 19. Bh2 {[%clk 0:02:05]}  b6 {[%clk 0:01:50]} 20. Rae1 {[%clk 0:02:00]}  Qg5 {[%clk 0:01:19]} 21. Bxd6 {[%clk 0:01:50]}  Rfe8 {[%clk 0:01:10]} 22. Bf3 {[%clk 0:01:42]}  Nh4 {[%clk 0:01:00]} 23. Bh2 {[%clk 0:01:25]}  c4 {[%clk 0:00:51]} 24. Rxe8+ {[%clk 0:01:20]}  Rxe8 {[%clk 0:00:47]} 25. Qxc4 {[%clk 0:01:11]}  Nxf3+ {[%clk 0:00:39]} 26. Rxf3 {[%clk 0:01:12]}  Re1+ {[%clk 0:00:14]} 27. Rf1 {[%clk 0:01:11]}  Qe3+ {[%clk 0:00:13]} 28. Kh1 {[%clk 0:01:10]}  Qf2 {[%clk 0:00:10]} 29. Rxe1 {[%clk 0:01:07]}  Qxe1+ {[%clk 0:00:09]} 30. Bg1 {[%clk 0:01:08]}  Bxb2 {[%clk 0:00:07]} 31. d6+ {[%clk 0:01:06]}  Kf8 {[%clk 0:00:08]} 32. Qc8+ {[%clk 0:01:01]}  Kf7 {[%clk 0:00:08]} 33. Qxf5+ {[%clk 0:01:01]}  Ke8 {[%clk 0:00:09]} 34. Qc8+ {[%clk 0:00:53]}  Kf7 {[%clk 0:00:09]} 35. d7 {[%clk 0:00:52]}  Bf6 {[%clk 0:00:03]} 36. d8=Q {[%clk 0:00:52]}  Bxd8 {[%clk 0:00:04]} 37. Qxd8 {[%clk 0:00:53]}  a5 {[%clk 0:00:04]} 38. Qxb6 {[%clk 0:00:53]}  a4 {[%clk 0:00:05]} 39. Qa7+ {[%clk 0:00:52]}  Kg8 {[%clk 0:00:04]} 40. Qxa4 {[%clk 0:00:52]}  h5 {[%clk 0:00:05]} 41. Qa8+ {[%clk 0:00:51]}  Kg7 {[%clk 0:00:04]} 42. Qd5 {[%clk 0:00:50]}  h4 {[%clk 0:00:04]} 43. c4 {[%clk 0:00:50]}  Kf8 {[%clk 0:00:02]} 44. c5 {[%clk 0:00:49]}  Kg7 {[%clk 0:00:02]} 45. c6 {[%clk 0:00:49]}  Qf1 {[%clk 0:00:02]} 46. c7 {[%clk 0:00:47]}  Qf8 {[%clk 0:00:02]} 47. Qd8 {[%clk 0:00:46]}  Qf7 {[%clk 0:00:02]} 48. c8=Q {[%clk 0:00:45]}  Kg6 {[%clk 0:00:03]} 49. Qg8+ {[%clk 0:00:45]}  Qg7 {[%clk 0:00:02]} 50. Qxg7+ {[%clk 0:00:45]}  Kh5 {[%clk 0:00:02]} 51. Qcg4# {[%clk 0:00:44]} 1-0


[Site "https://www.chess.com"]

[Event "Titled Tuesday Blitz July 11 Late 2023"]
[White "Bueno, Alfeu Junior Varela"]
[Black "profedechess93"]
[WhiteFideId "2108879"]
[WhiteElo "2441"]
[BlackElo "2622"]
[Result "1-0"]
[Round "4"]
[TimeControl "180+2"]
[Date "2023.07.11"]
[WhiteClock "0:00:05"]
[BlackClock "0:00:12"]
[Board "70"]

1. e4 {[%clk 0:03:00]}  e6 {[%clk 0:03:00]} 2. d4 {[%clk 0:03:00]}  d5 {[%clk 0:03:00]} 3. Nd2 {[%clk 0:03:01]}  Be7 {[%clk 0:03:00]} 4. Bd3 {[%clk 0:03:00]}  c5 {[%clk 0:02:59]} 5. c3 {[%clk 0:02:59]}  cxd4 {[%clk 0:02:59]} 6. cxd4 {[%clk 0:03:00]}  dxe4 {[%clk 0:03:00]} 7. Nxe4 {[%clk 0:03:00]}  Nf6 {[%clk 0:03:00]} 8. Nf3 {[%clk 0:02:57]}  Nc6 {[%clk 0:03:00]} 9. O-O {[%clk 0:02:56]}  O-O {[%clk 0:02:59]} 10. Nc3 {[%clk 0:02:47]}  Nb4 {[%clk 0:02:57]} 11. Bb1 {[%clk 0:02:44]}  b6 {[%clk 0:02:57]} 12. a3 {[%clk 0:02:40]}  Nbd5 {[%clk 0:02:56]} 13. Ne5 {[%clk 0:02:40]}  Bb7 {[%clk 0:02:55]} 14. Qd3 {[%clk 0:02:34]}  Nxc3 {[%clk 0:02:06]} 15. bxc3 {[%clk 0:02:20]}  Rc8 {[%clk 0:02:00]} 16. f3 {[%clk 0:02:11]}  Qc7 {[%clk 0:01:45]} 17. Bd2 {[%clk 0:02:05]}  Rfd8 {[%clk 0:01:43]} 18. a4 {[%clk 0:01:44]}  g6 {[%clk 0:01:38]} 19. Qe2 {[%clk 0:01:33]}  Nd5 {[%clk 0:01:31]} 20. Ba2 {[%clk 0:01:10]}  Bd6 {[%clk 0:01:13]} 21. f4 {[%clk 0:00:52]}  Re8 {[%clk 0:00:56]} 22. Rac1 {[%clk 0:00:40]}  Ba3 {[%clk 0:00:55]} 23. Rc2 {[%clk 0:00:30]}  Nb4 {[%clk 0:00:52]} 24. cxb4 {[%clk 0:00:10]}  Qxc2 {[%clk 0:00:51]} 25. Ng4 {[%clk 0:00:11]}  Qf5 {[%clk 0:00:24]} 26. Nh6+ {[%clk 0:00:11]}  Kf8 {[%clk 0:00:23]} 27. Nxf5 {[%clk 0:00:12]}  exf5 {[%clk 0:00:24]} 28. Qd3 {[%clk 0:00:10]}  Bb2 {[%clk 0:00:23]} 29. Re1 {[%clk 0:00:07]}  Be4 {[%clk 0:00:23]} 30. Qb3 {[%clk 0:00:06]}  Re7 {[%clk 0:00:22]} 31. Qxb2 {[%clk 0:00:06]}  Rd8 {[%clk 0:00:23]} 32. Bc3 {[%clk 0:00:05]}  Kg8 {[%clk 0:00:22]} 33. d5 {[%clk 0:00:05]}  Rde8 {[%clk 0:00:23]} 34. d6 {[%clk 0:00:04]}  Rd7 {[%clk 0:00:23]} 35. Be5 {[%clk 0:00:03]}  Kf8 {[%clk 0:00:17]} 36. Bb1 {[%clk 0:00:04]}  Bd5 {[%clk 0:00:15]} 37. Qd4 {[%clk 0:00:03]}  f6 {[%clk 0:00:15]} 38. Qxd5 {[%clk 0:00:02]}  fxe5 {[%clk 0:00:16]} 39. fxe5 {[%clk 0:00:03]}  Red8 {[%clk 0:00:13]} 40. e6 {[%clk 0:00:04]}  Rxd6 {[%clk 0:00:13]} 41. e7+ {[%clk 0:00:04]}  Kg7 {[%clk 0:00:13]} 42. exd8=Q {[%clk 0:00:05]}  Rxd8 {[%clk 0:00:13]} 43. Qxd8 {[%clk 0:00:05]}  Kh6 {[%clk 0:00:12]} 44. Qh4+ {[%clk 0:00:05]} 1-0


[Site "https://www.chess.com"]

[Event "Titled Tuesday Blitz July 11 Late 2023"]
[White "Weishaeutel, Moritz"]
[Black "Taranenko, Evgueniy"]
[WhiteFideId "12967300"]
[BlackFideId "14122138"]
[WhiteElo "2618"]
[BlackElo "2435"]
[Result "1-0"]
[Round "4"]
[TimeControl "180+2"]
[Date "2023.07.11"]
[WhiteClock "0:02:54"]
[BlackClock "0:02:31"]
[Board "71"]

1. e4 {[%clk 0:03:00]}  e6 {[%clk 0:02:58]} 2. d4 {[%clk 0:03:01]}  d5 {[%clk 0:02:58]} 3. exd5 {[%clk 0:03:01]}  exd5 {[%clk 0:02:58]} 4. Nf3 {[%clk 0:03:02]}  Nf6 {[%clk 0:02:58]} 5. Bd3 {[%clk 0:03:02]}  Bd6 {[%clk 0:02:57]} 6. O-O {[%clk 0:03:03]}  O-O {[%clk 0:02:57]} 7. Bg5 {[%clk 0:03:03]}  Bg4 {[%clk 0:02:56]} 8. Nbd2 {[%clk 0:03:04]}  c6 {[%clk 0:02:55]} 9. c4 {[%clk 0:03:04]}  dxc4 {[%clk 0:02:54]} 10. Nxc4 {[%clk 0:03:05]}  Bc7 {[%clk 0:02:50]} 11. Nce5 {[%clk 0:02:59]}  h6 {[%clk 0:02:31]} 12. Bxf6 {[%clk 0:02:54]} 1-0


[Site "https://www.chess.com"]

[Event "Titled Tuesday Blitz July 11 Late 2023"]
[White "Pinero Rodriguez, Carlos Jose"]
[Black "Ganiev, Roman"]
[WhiteFideId "3901726"]
[BlackFideId "4131452"]
[WhiteElo "2406"]
[BlackElo "2609"]
[Result "1-0"]
[Round "4"]
[TimeControl "180+2"]
[Date "2023.07.11"]
[WhiteClock "0:02:23"]
[BlackClock "0:01:14"]
[Board "74"]

1. b3 {[%clk 0:03:00]}  e5 {[%clk 0:02:56]} 2. Bb2 {[%clk 0:03:01]}  Nc6 {[%clk 0:02:57]} 3. e3 {[%clk 0:03:01]}  Nf6 {[%clk 0:02:57]} 4. Bb5 {[%clk 0:03:01]}  Bd6 {[%clk 0:02:57]} 5. c4 {[%clk 0:03:01]}  Qe7 {[%clk 0:02:58]} 6. Nc3 {[%clk 0:03:02]}  a6 {[%clk 0:02:57]} 7. Ba4 {[%clk 0:03:02]}  O-O {[%clk 0:02:56]} 8. a3 {[%clk 0:03:02]}  Re8 {[%clk 0:02:50]} 9. b4 {[%clk 0:03:01]}  Qd8 {[%clk 0:02:46]} 10. Qc2 {[%clk 0:02:59]}  Bf8 {[%clk 0:02:46]} 11. Nf3 {[%clk 0:02:57]}  d5 {[%clk 0:02:45]} 12. cxd5 {[%clk 0:02:56]}  Nxd5 {[%clk 0:02:45]} 13. Nxd5 {[%clk 0:02:55]}  Qxd5 {[%clk 0:02:46]} 14. Bb3 {[%clk 0:02:55]}  Qd6 {[%clk 0:02:44]} 15. Ng5 {[%clk 0:02:54]}  e4 {[%clk 0:02:08]} 16. Nxf7 {[%clk 0:02:52]}  Qe7 {[%clk 0:01:35]} 17. Ng5+ {[%clk 0:02:23]}  Kh8 {[%clk 0:01:14]} 18. Qc4 {[%clk 0:02:23]} 1-0


[Site "https://www.chess.com"]

[Event "Titled Tuesday Blitz July 11 Late 2023"]
[White "Chen, Justin"]
[Black "Harriott, Tyrell"]
[WhiteFideId "2098199"]
[BlackFideId "2086484"]
[WhiteElo "2608"]
[BlackElo "2390"]
[Result "1-0"]
[Round "4"]
[TimeControl "180+2"]
[Date "2023.07.11"]
[WhiteClock "0:00:31"]
[BlackClock "0:00:20"]
[Board "75"]

1. e4 {[%clk 0:03:00]}  e6 {[%clk 0:02:55]} 2. d4 {[%clk 0:03:00]}  d5 {[%clk 0:02:54]} 3. e5 {[%clk 0:03:01]}  c5 {[%clk 0:02:54]} 4. c3 {[%clk 0:03:02]}  Nc6 {[%clk 0:02:55]} 5. Nf3 {[%clk 0:03:03]}  f5 {[%clk 0:02:54]} 6. exf6 {[%clk 0:02:56]}  Nxf6 {[%clk 0:02:53]} 7. Bd3 {[%clk 0:02:57]}  Bd6 {[%clk 0:02:53]} 8. O-O {[%clk 0:02:52]}  O-O {[%clk 0:02:52]} 9. Re1 {[%clk 0:02:52]}  Ng4 {[%clk 0:02:52]} 10. h3 {[%clk 0:02:46]}  Nxf2 {[%clk 0:02:51]} 11. Kxf2 {[%clk 0:02:13]}  Qh4+ {[%clk 0:02:51]} 12. Ke2 {[%clk 0:02:05]}  Rxf3 {[%clk 0:02:27]} 13. gxf3 {[%clk 0:02:03]}  e5 {[%clk 0:02:11]} 14. dxc5 {[%clk 0:01:52]}  Bxc5 {[%clk 0:02:10]} 15. Kd2 {[%clk 0:01:53]}  Bxh3 {[%clk 0:01:53]} 16. Kc2 {[%clk 0:01:49]}  Bf2 {[%clk 0:01:45]} 17. Rh1 {[%clk 0:01:43]}  e4 {[%clk 0:01:40]} 18. fxe4 {[%clk 0:01:43]}  dxe4 {[%clk 0:01:40]} 19. Bf1 {[%clk 0:01:10]}  Rd8 {[%clk 0:01:23]} 20. Rxh3 {[%clk 0:01:07]}  Qf6 {[%clk 0:01:11]} 21. Bc4+ {[%clk 0:00:54]}  Kf8 {[%clk 0:01:03]} 22. Qe2 {[%clk 0:00:33]}  e3 {[%clk 0:00:56]} 23. Rf3 {[%clk 0:00:33]}  Ne5 {[%clk 0:00:50]} 24. Rxf6+ {[%clk 0:00:32]}  gxf6 {[%clk 0:00:51]} 25. Bxe3 {[%clk 0:00:29]}  Bxe3 {[%clk 0:00:48]} 26. Qxe3 {[%clk 0:00:30]}  Nxc4 {[%clk 0:00:48]} 27. Qc5+ {[%clk 0:00:30]}  Nd6 {[%clk 0:00:47]} 28. Nd2 {[%clk 0:00:31]}  Kf7 {[%clk 0:00:46]} 29. Qc7+ {[%clk 0:00:31]}  Ke6 {[%clk 0:00:46]} 30. Qxd8 {[%clk 0:00:31]}  Nf5 {[%clk 0:00:43]} 31. Re1+ {[%clk 0:00:30]}  Ne3+ {[%clk 0:00:42]} 32. Rxe3+ {[%clk 0:00:31]}  Kf5 {[%clk 0:00:43]} 33. Qd5+ {[%clk 0:00:31]}  Kg6 {[%clk 0:00:43]} 34. Rg3+ {[%clk 0:00:32]}  Kh6 {[%clk 0:00:42]} 35. Qf5 {[%clk 0:00:31]}  b5 {[%clk 0:00:20]} 36. Qh3# {[%clk 0:00:31]} 1-0


[Site "https://www.chess.com"]